fUSD/lending_fUSD_20240921
["ID","MTS","AMOUNT","RATE_DAILY","PERIOD"]
[338781473,1726912250381,-573.6676761,0.00014792,2]
[338781474,1726912250391,-2958.27,0.00014792,2]
[338781475,1726912250403,-2958.27,0.00014792,2]
[338781476,1726912250413,-2958.27,0.00014792,2]
[338781477,1726912250424,-500.0,0.00014792,2]
[338781478,1726912250433,-286.45697373,0.00014792,2]
[338781479,1726912250443,-500.0,0.00014792,2]
[338781480,1726912250454,-500.0,0.00014792,2]
[338781481,1726912250463,-251.51941246,0.00014792,2]
[338781482,1726912250473,-500.0,0.00014792,2]
[338781483,1726912250482,-500.0,0.00014792,2]
[338781484,1726912250491,-500.0,0.00014792,2]
[338781485,1726912250501,-500.0,0.00014792,2]
[338781486,1726912250511,-500.0,0.00014792,2]
[338781487,1726912250520,-500.0,0.00014792,2]
[338781488,1726912250530,-1867.79,0.00014792,2]
[338781489,1726912250541,-1867.79,0.00014792,2]
[338781490,1726912250551,-1867.79,0.00014792,2]
[338781491,1726912250562,-151.0,0.00014792,2]
[338781492,1726912250571,-151.0,0.00014792,2]
[338781493,1726912250581,-500.0,0.00014792,2]
[338781494,1726912250590,-500.0,0.00014792,2]
[338781495,1726912250599,-500.0,0.00014792,2]
[338781496,1726912250608,-500.0,0.00014792,2]
[338781497,1726912250618,-500.0,0.00014792,2]
[338781498,1726912250627,-500.0,0.00014792,2]
[338781499,1726912250636,-436.28684928,0.00014792,2]
[338781500,1726912250645,-500.0,0.00014792,2]
[338781501,1726912250655,-500.0,0.00014792,2]
[338781502,1726912250664,-500.0,0.00014792,2]
[338781503,1726912250673,-500.0,0.00014792,2]
[338781504,1726912250683,-500.0,0.00014792,2]
[338781505,1726912250693,-500.0,0.00014792,2]
[338781506,1726912250703,-500.0,0.00014792,2]
[338781507,1726912250712,-500.0,0.00014792,2]
[338781508,1726912250722,-566.55593051,0.00014792,2]
[338781509,1726912250731,-318.63370578,0.00014792,2]
[338781510,1726912250740,-500.0,0.00014792,2]
[338781511,1726912250750,-500.0,0.00014792,2]
[338781512,1726912250759,-509.63306373,0.00014792,2]
[338781513,1726912250768,-151.0,0.00014792,2]
[338781514,1726912250778,-151.0,0.00014792,2]
[338781515,1726912250787,-1887.458391,0.00014792,2]
[338781516,1726912250796,-1887.458391,0.00014792,2]
[338781517,1726912250805,-151.0,0.00014792,2]
[338781518,1726912250814,-151.0,0.00014792,2]
[338781519,1726912250824,-3366.35,0.00014793,2]
[338781520,1726912250833,-3366.35,0.00014793,2]
[338781521,1726912250843,-3366.35,0.00014793,2]
[338781522,1726912250852,-3366.35,0.00014793,2]
[338781523,1726912250862,-3366.35,0.00014793,2]
[338781524,1726912250871,-3366.35,0.00014793,2]
[338781525,1726912250881,-3366.42969709,0.00014793,2]
[338781526,1726912250891,-3770.56,0.00014793,2]
[338781527,1726912250900,-3770.56,0.00014793,2]
[338781528,1726912250910,-3770.56,0.00014793,2]
[338781529,1726912250919,-3770.56,0.00014793,2]
[338781530,1726912250929,-3770.56,0.00014793,2]
[338781531,1726912250940,-3770.56,0.00014793,2]
[338781532,1726912250952,-3770.56,0.00014793,2]
[338781533,1726912250961,-3770.56,0.00014793,2]
[338781534,1726912250970,-3770.6,0.00014793,2]
[338781535,1726912250980,-5480.71,0.00014793,2]
[338781536,1726912250990,-5480.71,0.00014793,2]
[338781537,1726912251000,-5480.71,0.00014793,2]
[338781538,1726912251011,-5480.71,0.00014793,2]
[338781539,1726912251022,-5480.71,0.00014793,2]
[338781540,1726912251032,-5480.71,0.00014793,2]
[338781541,1726912251042,-5480.71,0.00014793,2]
[338781542,1726912251053,-5480.71,0.00014793,2]
[338781543,1726912251063,-5480.77,0.00014793,2]
[338781544,1726912251073,-501.86,0.00014793,2]
[338781545,1726912251083,-501.86,0.00014793,2]
[338781546,1726912251094,-501.86,0.00014793,2]
[338781547,1726912251104,-501.86,0.00014793,2]
[338781548,1726912251116,-501.86,0.00014793,2]
[338781549,1726912251127,-501.86,0.00014793,2]
[338781550,1726912251137,-502.06,0.00014793,2]
[338781551,1726912251147,-2821.7,0.00014793,2]
[338781552,1726912251157,-2821.7,0.00014793,2]
[338781553,1726912251166,-2821.7,0.00014793,2]
[338781554,1726912251177,-2821.7,0.00014793,2]
[338781555,1726912251187,-2821.7,0.00014793,2]
[338781556,1726912251196,-2821.7,0.00014793,2]
[338781557,1726912251205,-2821.7,0.00014793,2]
[338781558,1726912251215,-2821.7,0.00014793,2]
[338781559,1726912251224,-2821.71,0.00014793,2]
[338781560,1726912251234,-4290.93,0.00014793,2]
[338781561,1726912251244,-4290.93,0.00014793,2]
[338781562,1726912251254,-4290.93,0.00014793,2]
[338781563,1726912251263,-4290.93,0.00014793,2]
[338781564,1726912251272,-4290.93,0.00014793,2]
[338781565,1726912251282,-4290.93,0.00014793,2]
[338781566,1726912251292,-4290.93,0.00014793,2]
[338781567,1726912251302,-4290.93,0.00014793,2]
[338781568,1726912251312,-4291.04,0.00014793,2]
[338781569,1726912251322,-949.96,0.00014793,2]
[338781570,1726912251332,-949.96,0.00014793,2]
[338781571,1726912251342,-949.96,0.00014793,2]
[338781572,1726912251352,-949.96,0.00014793,2]
[338781573,1726912251362,-949.96,0.00014793,2]
[338781574,1726912251372,-949.96,0.00014793,2]
[338781575,1726912251382,-949.98,0.00014793,2]
[338781576,1726912251392,-13331.55,0.00014793,2]
[338781577,1726912251404,-13331.55,0.00014793,2]
[338781578,1726912251414,-13331.55,0.00014793,2]
[338781579,1726912251424,-13331.55,0.00014793,2]
[338781580,1726912251434,-13331.55,0.00014793,2]
[338781581,1726912251443,-13331.55,0.00014793,2]
[338781582,1726912251453,-13331.55,0.00014793,2]
[338781583,1726912251463,-13331.55,0.00014793,2]
[338781584,1726912251472,-13331.57097247,0.00014793,2]
[338781585,1726912251483,-3409.57,0.00014793,2]
[338781586,1726912251493,-3409.57,0.00014793,2]
[338781587,1726912251503,-3409.57,0.00014793,2]
[338781588,1726912251513,-3409.57,0.00014793,2]
[338781589,1726912251523,-3409.57,0.00014793,2]
[338781590,1726912251532,-3409.57,0.00014793,2]
[338781591,1726912251542,-3409.72,0.00014793,2]
[338781592,1726912251552,-3783.37,0.00014793,2]
[338781593,1726912251561,-3783.37,0.00014793,2]
[338781594,1726912251571,-3783.37,0.00014793,2]
[338781595,1726912251580,-3783.37,0.00014793,2]
[338781596,1726912251590,-3783.37,0.00014793,2]
[338781597,1726912251599,-3783.37,0.00014793,2]
[338781598,1726912251609,-3783.43,0.00014793,2]
[338781599,1726912251618,-500.0,0.00014793,2]
[338781600,1726912251628,-500.0,0.00014793,2]
[338781601,1726912251638,-500.0,0.00014793,2]
[338781602,1726912251649,-500.0,0.00014793,2]
[338781603,1726912251658,-500.0,0.00014793,2]
[338781604,1726912251668,-500.0,0.00014793,2]
[338781605,1726912251679,-500.0,0.00014793,2]
[338781606,1726912251689,-358.96,0.00014793,2]
[338781607,1726912251699,-1501.63681404,0.00014793,2]
[338781608,1726912251708,-1000.0,0.00014793,2]
[338781609,1726912251718,-816.23,0.00014793,2]
[338781610,1726912251728,-816.23,0.00014793,2]
[338781611,1726912251737,-816.23,0.00014793,2]
[338781612,1726912251747,-816.23,0.00014793,2]
[338781613,1726912251756,-816.23,0.00014793,2]
[338781614,1726912251766,-816.23,0.00014793,2]
[338781615,1726912251775,-816.23,0.00014793,2]
[338781616,1726912251863,-816.23,0.00014793,2]
[338781617,1726912251873,-816.43,0.00014793,2]
[338781618,1726912251884,-3994.69,0.00014793,2]
[338781619,1726912251894,-3994.69,0.00014793,2]
[338781620,1726912251904,-3994.69,0.00014793,2]
[338781621,1726912251914,-3994.69,0.00014793,2]
[338781622,1726912251923,-3994.69,0.00014793,2]
[338781623,1726912251933,-3994.69,0.00014793,2]
[338781624,1726912251942,-3994.69,0.00014793,2]
[338781625,1726912251952,-3994.69,0.00014793,2]
[338781626,1726912251961,-3994.87,0.00014793,2]
[338781627,1726912251971,-6061.04,0.00014793,2]
[338781628,1726912251981,-6061.04,0.00014793,2]
[338781629,1726912251990,-6061.04,0.00014793,2]
[338781630,1726912252000,-6061.04,0.00014793,2]
[338781631,1726912252009,-6061.04,0.00014793,2]
[338781632,1726912252019,-5495.65682374,0.00014793,2]
[338781633,1726912252080,-565.38317626,0.00014793,2]
[338781634,1726912252090,-105.86397539,0.00014793,2]
[338781635,1726912252101,-851.13981065,0.00014793,2]
[338781636,1726912316686,500.0,0.00011164,2]
[338781637,1726912322935,600.0,0.00010068,2]
[338781638,1726912324581,600.0,0.00011438,2]
[338781639,1726912390644,251.56,0.00010959,2]
[338781640,1726912493232,-200.0,0.00012578,2]
[338781641,1726912493253,-3389.87471541,0.00012579,2]
[338781642,1726912504704,-300.0,0.00012679,2]
[338781643,1726912512153,-12420.93,0.0001268,2]
[338781644,1726912552395,-151.77,0.00013918,30]
[338781645,1726912582748,-600.0,0.00012808,2]
[338781646,1726912582770,-3703.42528459,0.00012899,2]
[338781647,1726912648245,500.0,0.00011164,2]
[338781648,1726912658350,230.48,0.00011707,2]
[338781650,1726913259156,218.95,0.0001144,2]
[338781653,1726913432338,-500.0,0.00012534,2]
[338781654,1726913432348,-21.68931522,0.00012899,2]
[338781655,1726913432360,-1385.74890019,0.00012899,2]
[338781656,1726913432370,-314.08,0.00013,2]
[338781657,1726913432379,-1008.62,0.00013,2]
[338781658,1726913432389,-250.0,0.00013315,2]
[338781659,1726913432399,-500.0,0.00013377,2]
[338781660,1726913432411,-1000.0,0.00013389,2]
[338781661,1726913432421,-169.08,0.00013413,2]
[338781662,1726913432433,-460.37,0.00013498,2]
[338781663,1726913432442,-300.0,0.00013698,2]
[338781664,1726913432452,-799.86,0.00013699,2]
[338781665,1726913432461,-200.0,0.00013699,2]
[338781666,1726913432471,-2751.0,0.00013699,2]
[338781667,1726913432480,-150.0,0.00013699,2]
[338781668,1726913432490,-218.95,0.00013704,2]
[338781669,1726913432500,-237.53375484,0.00013704,2]
[338781670,1726913432512,-347.96624516,0.00013704,2]
[338781671,1726913432522,-336.61,0.00013833,2]
[338781672,1726913432532,-1362.71539636,0.00013887,2]
[338781673,1726913432543,-4504.28460364,0.00013887,2]
[338781674,1726913432553,-150.0,0.00013887,2]
[338781675,1726913432563,-1618.66371265,0.00013887,2]
[338781676,1726913432574,-661.83076547,0.00013887,2]
[338781677,1726913432594,-609.63404358,0.00013887,2]
[338781678,1726913432605,-756.03810701,0.00013887,2]
[338781679,1726913432616,-1182.71091713,0.00013887,2]
[338781680,1726913432627,-3273.10212446,0.00013887,2]
[338781681,1726913432638,-1092.55254397,0.00013887,2]
[338781682,1726913432650,-600.09293378,0.00013887,2]
[338781683,1726913432669,-790.59109247,0.00013887,2]
[338781684,1726913432684,-2904.78375948,0.00013887,2]
[338781685,1726913432694,-1080.0,0.00013887,2]
[338781686,1726913432703,-615.98,0.000139,2]
[338781687,1726913432712,-500.0,0.00013904,2]
[338781688,1726913432721,-500.0,0.00013904,2]
[338781689,1726913432729,-151.77,0.00013918,30]
[338781690,1726913432738,-169.286687,0.00014049,2]
[338781691,1726913432747,-239.624612,0.00014049,2]
[338781692,1726913432756,-150.0,0.00014059,2]
[338781693,1726913432765,-1780.546775,0.00014075,2]
[338781694,1726913432774,-150.0,0.00014221,2]
[338781695,1726913432784,-150.0,0.00014222,2]
[338781696,1726913432794,-223.413,0.00014222,2]
[338781697,1726913432803,-211.286,0.00014222,2]
[338781698,1726913432813,-150.0,0.00014222,2]
[338781699,1726913432823,-150.0,0.00014222,2]
[338781700,1726913432832,-150.0,0.00014222,2]
[338781701,1726913432841,-150.0,0.00014222,2]
[338781702,1726913432851,-150.0,0.00014222,2]
[338781703,1726913432860,-625.0,0.00014222,2]
[338781704,1726913432870,-1262.0,0.00014222,2]
[338781705,1726913432879,-442.649,0.00014222,2]
[338781706,1726913432888,-150.0,0.00014222,2]
[338781707,1726913432898,-558.0,0.00014222,2]
[338781708,1726913432909,-933.0,0.00014222,2]
[338781709,1726913432918,-810.0,0.00014222,2]
[338781710,1726913432928,-553.0,0.00014222,2]
[338781711,1726913432938,-1903.0,0.00014222,2]
[338781712,1726913432947,-3347.0,0.00014222,2]
[338781713,1726913432957,-806.0,0.00014222,2]
[338781714,1726913432966,-248.0,0.00014222,2]
[338781715,1726913432976,-421.86233158,0.00014268,2]
[338781716,1726913432985,-799.86,0.00014384,2]
[338781717,1726913432996,-1000.0,0.000144,2]
[338781718,1726913433005,-169.286687,0.00014401,2]
[338781719,1726913433016,-150.0,0.0001442,2]
[338781720,1726913433028,-500.0,0.0001452,2]
[338781721,1726913433038,-500.0,0.0001452,2]
[338781722,1726913433047,-500.0,0.0001452,2]
[338781723,1726913433057,-500.0,0.0001452,2]
[338781724,1726913433067,-500.0,0.0001452,2]
[338781725,1726913433077,-500.0,0.0001452,2]
[338781726,1726913433087,-500.0,0.0001452,2]
[338781727,1726913433098,-500.0,0.0001452,2]
[338781728,1726913433108,-500.0,0.0001452,2]
[338781729,1726913433118,-500.0,0.0001452,2]
[338781730,1726913433127,-500.0,0.0001452,2]
[338781731,1726913433136,-500.0,0.0001452,2]
[338781732,1726913433146,-500.0,0.0001452,2]
[338781733,1726913433156,-500.0,0.0001452,2]
[338781734,1726913433166,-500.0,0.0001452,2]
[338781735,1726913433175,-500.0,0.0001452,2]
[338781736,1726913433185,-500.0,0.0001452,2]
[338781737,1726913433194,-500.0,0.0001452,2]
[338781738,1726913433203,-500.0,0.0001452,2]
[338781739,1726913433213,-551.23923717,0.0001452,2]
[338781740,1726913433222,-615.45478969,0.0001452,2]
[338781741,1726913433231,-500.0,0.0001452,2]
[338781742,1726913433241,-500.0,0.0001452,2]
[338781743,1726913433251,-500.0,0.0001452,2]
[338781744,1726913433260,-500.0,0.0001452,2]
[338781745,1726913433269,-500.0,0.0001452,2]
[338781746,1726913433278,-500.0,0.0001452,2]
[338781747,1726913433288,-500.0,0.0001452,2]
[338781748,1726913433297,-500.0,0.0001452,2]
[338781749,1726913433307,-500.0,0.0001452,2]
[338781750,1726913433316,-500.0,0.0001452,2]
[338781751,1726913433325,-500.0,0.0001452,2]
[338781752,1726913433335,-418.2,0.0001452,2]
[338781753,1726913433344,-500.0,0.0001452,2]
[338781754,1726913433354,-500.0,0.0001452,2]
[338781755,1726913433363,-500.0,0.0001452,2]
[338781756,1726913433372,-500.0,0.0001452,2]
[338781757,1726913433382,-500.0,0.0001452,2]
[338781758,1726913433391,-500.0,0.0001452,2]
[338781759,1726913433400,-500.0,0.0001452,2]
[338781760,1726913433410,-500.0,0.0001452,2]
[338781761,1726913433419,-500.0,0.0001452,2]
[338781762,1726913433428,-500.0,0.0001452,2]
[338781763,1726913433438,-480.5639808,0.0001452,2]
[338781764,1726913433447,-500.0,0.0001452,2]
[338781765,1726913433456,-500.0,0.0001452,2]
[338781766,1726913433466,-500.0,0.0001452,2]
[338781767,1726913433475,-500.0,0.0001452,2]
[338781768,1726913433485,-500.0,0.0001452,2]
[338781769,1726913433494,-500.0,0.0001452,2]
[338781770,1726913433503,-500.0,0.0001452,2]
[338781771,1726913433512,-500.0,0.0001452,2]
[338781772,1726913433521,-500.0,0.0001452,2]
[338781773,1726913433531,-500.0,0.0001452,2]
[338781774,1726913433540,-500.0,0.0001452,2]
[338781775,1726913433549,-500.0,0.0001452,2]
[338781776,1726913433558,-500.0,0.0001452,2]
[338781777,1726913433567,-500.0,0.0001452,2]
[338781778,1726913433577,-500.0,0.0001452,2]
[338781779,1726913433586,-1441.92,0.0001452,2]
[338781780,1726913433596,-1441.92,0.0001452,2]
[338781781,1726913433605,-1441.92,0.0001452,2]
[338781782,1726913433614,-1441.92,0.0001452,2]
[338781783,1726913433623,-1441.92,0.0001452,2]
[338781784,1726913433633,-1441.92,0.0001452,2]
[338781785,1726913433643,-1441.92,0.0001452,2]
[338781786,1726913433652,-500.0,0.0001452,2]
[338781787,1726913433662,-500.0,0.0001452,2]
[338781788,1726913433671,-500.0,0.0001452,2]
[338781789,1726913433681,-500.0,0.0001452,2]
[338781790,1726913433690,-500.0,0.0001452,2]
[338781791,1726913433699,-500.0,0.0001452,2]
[338781792,1726913433708,-500.0,0.0001452,2]
[338781793,1726913433718,-500.0,0.0001452,2]
[338781794,1726913433727,-500.0,0.0001452,2]
[338781795,1726913433736,-500.0,0.0001452,2]
[338781796,1726913433746,-500.0,0.0001452,2]
[338781797,1726913433755,-594.41,0.0001452,2]
[338781798,1726913433765,-500.0,0.0001452,2]
[338781799,1726913433774,-500.0,0.0001452,2]
[338781800,1726913433784,-500.0,0.0001452,2]
[338781801,1726913433794,-500.0,0.0001452,2]
[338781802,1726913433803,-500.0,0.0001452,2]
[338781803,1726913433813,-500.0,0.0001452,2]
[338781804,1726913433822,-500.0,0.0001452,2]
[338781805,1726913433831,-500.0,0.0001452,2]
[338781806,1726913433840,-500.0,0.0001452,2]
[338781807,1726913433849,-500.0,0.0001452,2]
[338781808,1726913433859,-500.0,0.0001452,2]
[338781809,1726913433868,-500.0,0.0001452,2]
[338781810,1726913433877,-500.0,0.0001452,2]
[338781811,1726913433890,-500.0,0.0001452,2]
[338781812,1726913433899,-500.0,0.0001452,2]
[338781813,1726913433909,-500.0,0.0001452,2]
[338781814,1726913433919,-500.0,0.0001452,2]
[338781815,1726913433929,-500.0,0.0001452,2]
[338781816,1726913433938,-500.0,0.0001452,2]
[338781817,1726913433948,-500.0,0.0001452,2]
[338781818,1726913433958,-500.0,0.0001452,2]
[338781819,1726913433968,-500.0,0.0001452,2]
[338781820,1726913433977,-500.0,0.0001452,2]
[338781821,1726913433987,-500.0,0.0001452,2]
[338781822,1726913433996,-500.0,0.0001452,2]
[338781823,1726913434006,-500.0,0.0001452,2]
[338781824,1726913434017,-500.0,0.0001452,2]
[338781825,1726913434028,-155.79519503,0.0001452,2]
[338781826,1726913434038,-500.0,0.0001452,2]
[338781827,1726913434047,-500.0,0.0001452,2]
[338781828,1726913434057,-500.0,0.0001452,2]
[338781829,1726913434067,-500.0,0.0001452,2]
[338781830,1726913434076,-500.0,0.0001452,2]
[338781831,1726913434086,-500.0,0.0001452,2]
[338781832,1726913434096,-500.0,0.0001452,2]
[338781833,1726913434106,-192.48,0.0001452,2]
[338781834,1726913434116,-500.0,0.0001452,2]
[338781835,1726913434125,-500.0,0.0001452,2]
[338781836,1726913434135,-500.0,0.0001452,2]
[338781837,1726913434144,-500.0,0.0001452,2]
[338781838,1726913434153,-288.36,0.0001452,2]
[338781839,1726913434163,-314.19718,0.00014521,2]
[338781840,1726913434172,-336.61,0.00014525,2]
[338781841,1726913434182,-386.275,0.00014528,2]
[338781842,1726913434191,-166.398,0.00014528,2]
[338781843,1726913434201,-152.0,0.0001454,3]
[338781844,1726913434210,-242.5164361,0.0001454,2]
[338781845,1726913434220,-161.04936566,0.00014588,2]
[338781846,1726913434229,-904.37952326,0.00014594,2]
[338781847,1726913434239,-500.0,0.00014675,2]
[338781848,1726913434248,-2000.0,0.00014676,2]
[338781849,1726913434257,-500.0,0.00014676,2]
[338781850,1726913434267,-500.0,0.00014676,2]
[338781851,1726913434276,-500.0,0.00014676,2]
[338781852,1726913434286,-200.0,0.00014676,2]
[338781853,1726913434295,-1337.57703746,0.0001468,2]
[338781854,1726913434304,-79311.4503,0.00014683,2]
[338781855,1726913434314,-153.28569643,0.00014687,2]
[338781856,1726913434323,-352.89950837,0.00014688,2]
[338781857,1726913434333,-7500.0,0.00014693,2]
[338781858,1726913434342,-168.30004499,0.00014693,2]
[338781859,1726913434352,-176.81501871,0.00014693,2]
[338781860,1726913434361,-190.98665055,0.00014693,2]
[338781861,1726913434371,-352.89950837,0.00014693,2]
[338781862,1726913434380,-461.37081932,0.00014694,2]
[338781863,1726913434390,-205.95140658,0.00014694,2]
[338781864,1726913434399,-1337.57703746,0.00014696,2]
[338781865,1726913434409,-194.0,0.000147,2]
[338781866,1726913434419,-560.0,0.000147,2]
[338781867,1726913434428,-1000.0,0.000147,2]
[338781868,1726913434438,-169.286687,0.00014752,2]
[338781869,1726913434447,-400.0,0.0001477,2]
[338781870,1726913434457,-1413.96,0.00014772,2]
[338781871,1726913434466,-391.80936884,0.00014773,2]
[338781872,1726913434476,-32975.3846607,0.00014773,2]
[338781873,1726913434485,-153.09,0.00014773,2]
[338781874,1726913434495,-153.09,0.00014773,2]
[338781875,1726913434504,-8243.84616517,0.00014776,2]
[338781876,1726913434513,-1413.96,0.00014777,2]
[338781877,1726913434523,-65950.7693214,0.00014777,2]
[338781878,1726913434532,-153.09,0.00014777,2]
[338781879,1726913434542,-1826.9,0.0001478,2]
[338781880,1726913434552,-841.59,0.0001478,2]
[338781881,1726913434561,-150.0,0.0001478,2]
[338781882,1726913434571,-16487.6923303,0.0001478,2]
[338781883,1726913434581,-500.0,0.00014782,2]
[338781884,1726913434591,-500.0,0.00014782,2]
[338781885,1726913434601,-612.10967379,0.00014782,2]
[338781886,1726913434610,-162.52,0.00014782,2]
[338781887,1726913434620,-500.0,0.00014782,2]
[338781888,1726913434630,-500.0,0.00014782,2]
[338781889,1726913434640,-500.0,0.00014782,2]
[338781890,1726913434650,-500.0,0.00014782,2]
[338781891,1726913434661,-500.0,0.00014782,2]
[338781892,1726913434671,-500.0,0.00014782,2]
[338781893,1726913434681,-500.0,0.00014782,2]
[338781894,1726913434690,-1609.1,0.00014782,2]
[338781895,1726913434700,-1609.1,0.00014782,2]
[338781896,1726913434710,-500.0,0.00014782,2]
[338781897,1726913434720,-500.0,0.00014782,2]
[338781898,1726913434730,-500.0,0.00014782,2]
[338781899,1726913434740,-500.0,0.00014782,2]
[338781900,1726913434750,-1826.9,0.00014782,2]
[338781901,1726913434760,-539.35,0.00014782,2]
[338781902,1726913434769,-500.0,0.00014782,2]
[338781903,1726913434779,-500.0,0.00014782,2]
[338781904,1726913434789,-500.0,0.00014782,2]
[338781905,1726913434798,-500.0,0.00014782,2]
[338781906,1726913434808,-841.59,0.00014782,2]
[338781907,1726913434817,-24731.5384955,0.00014782,2]
[338781908,1726913434827,-16227.8942273,0.00014782,2]
[338781909,1726913434836,-153.09,0.00014782,2]
[338781910,1726913434846,-27615.80367104,0.00014783,2]
[338781911,1726913438378,-1337.57703746,0.00014711,2]
[338781912,1726913438388,-42.28868361,0.00014783,2]
[338781914,1726913438399,-1292.5,0.00014783,2]
[338781916,1726913438411,-2570.50200004,0.00014783,2]
[338781917,1726913438492,-463.4202856,0.00014783,2]
[338781918,1726913438503,-2516.25952687,0.00014783,2]
[338781919,1726913438514,-7620.42948403,0.00014783,2]
[338781920,1726913438525,-16932.32639603,0.00014783,2]
[338781921,1726913438609,-3413.85644702,0.00014783,2]
[338781922,1726913438622,-4032.83102732,0.00014783,2]
[338781923,1726913438633,-624.6,0.00014783,2]
[338781924,1726913438705,-40045.18262544,0.00014783,2]
[338781925,1726913438715,-340785.778774,0.00014783,2]
[338781926,1726913438725,-153.09,0.00014783,2]
[338781927,1726913438734,-500.0,0.00014783,2]
[338781928,1726913438744,-500.0,0.00014783,2]
[338781929,1726913438753,-500.0,0.00014783,2]
[338781930,1726913438762,-500.0,0.00014783,2]
[338781931,1726913438770,-1609.1,0.00014783,2]
[338781932,1726913438779,-500.0,0.00014783,2]
[338781933,1726913438787,-500.0,0.00014783,2]
[338781934,1726913438796,-234.2058342,0.00014783,2]
[338781935,1726913438805,-500.0,0.00014783,2]
[338781936,1726913438815,-500.0,0.00014783,2]
[338781938,1726913438824,-500.0,0.00014783,2]
[338781940,1726913438834,-1826.9,0.00014783,2]
[338781942,1726913438843,-500.0,0.00014783,2]
[338781944,1726913438853,-841.59,0.00014783,2]
[338781946,1726913438863,-32455.7884547,0.00014784,2]
[338781948,1726913438872,-386.00828179,0.00014786,2]
[338781950,1726913438881,-1609.1,0.00014786,2]
[338781952,1726913438890,-500.0,0.00014786,2]
[338781954,1726913438899,-1826.9,0.00014786,2]
[338781956,1726913438908,-1413.96,0.00014786,2]
[338781958,1726913438918,-841.59,0.00014786,2]
[338781959,1726913438927,-637.0,0.00014787,2]
[338781961,1726913438936,-12578.9468582,0.00014787,2]
[338781963,1726913438946,-13554.21312088,0.00014787,2]
[338781966,1726913438957,-110038.60873582,0.00014787,2]
[338781968,1726913438967,-10488.4770957,0.00014787,2]
[338781969,1726913438976,-500.0,0.00014788,2]
[338781972,1726913438985,-500.0,0.00014788,2]
[338781974,1726913438995,-500.0,0.00014788,2]
[338781976,1726913439004,-500.0,0.00014788,2]
[338781977,1726913439013,-1441.92,0.00014788,2]
[338781980,1726913439027,-500.0,0.00014791,2]
[338781982,1726913439036,-500.0,0.00014791,2]
[338781986,1726913439046,-500.0,0.00014791,2]
[338781988,1726913439055,-500.0,0.00014791,2]
[338781991,1726913439066,-500.0,0.00014791,2]
[338781994,1726913439076,-500.0,0.00014791,2]
[338781996,1726913439085,-500.0,0.00014791,2]
[338781998,1726913439096,-500.0,0.00014791,2]
[338782000,1726913439105,-500.0,0.00014791,2]
[338782002,1726913439114,-1441.92,0.00014791,2]
[338782004,1726913439123,-1441.92,0.00014791,2]
[338782007,1726913439133,-500.0,0.00014791,2]
[338782009,1726913439142,-500.0,0.00014791,2]
[338782010,1726913439151,-500.0,0.00014791,2]
[338782012,1726913439162,-500.0,0.00014791,2]
[338782014,1726913439171,-500.0,0.00014791,2]
[338782016,1726913439180,-500.0,0.00014791,2]
[338782018,1726913439189,-500.0,0.00014791,2]
[338782020,1726913439199,-500.0,0.00014791,2]
[338782022,1726913439208,-218.54318605,0.00014792,2]